Cogmind - Beta 16 @@@ ROGUE MODE // 2025.11.11 @ 22:20:16 Player: dp-fld Result: Destroyed by H-61 Shepherd with Heavy Assault Cannon Performance ------------- Evolutions (2) 1000 Regions Visited (5) 1000 Robots Destroyed (90) 450 Value Destroyed (2941) 2941 Prototype IDs (28) 560 Alien Tech Used (0) 0 Bonus (287) 287 TOTAL SCORE: 6238 Bonus ------- High Alert Combat Kills 157 Follower Combat Kills 130 Cogmind --------- Core Integrity 0/550 Matter 2/300 Energy 290/290 System Corruption 9% Temperature Cool (82) Movement Treading (220) Ox1 Location -8/Materials Parts ------- > --- POWER (1) -------- Improved Deuterium Engine > --- PROPULSION (4) --- Light Treads Improved Treads Aluminum Leg > --- UTILITY (4) ------ Improved Heat Sink High-capacity Storage Unit Improved Utility Shielding Improved Light Armor Plating > --- WEAPON (2) ------- Heavy Ion Cannon Flak Cannon > --- INVENTORY (20) --- Deuterium Engine Light Nuclear Core Light Nuclear Core Aerolev Unit Aerolev Unit Aerolev Unit Improved Terrain Scanner Improved Utility Shielding Sensor Drone Bay (20/20) Enhanced Autogun Enhanced Autogun Enhanced Autogun Enhanced Autogun Datajack Axe Peak State ------------ > --- POWER ------------ Improved Deuterium Engine > --- PROPULSION ------- Improved Aluminum Leg Improved Aluminum Leg Improved Aluminum Leg Improved Aluminum Leg > --- UTILITY ---------- High-capacity Storage Unit Advanced Targeting Computer Heavy Armor Plating > --- WEAPON ----------- Enhanced Autogun Enhanced Autogun > --- INVENTORY -------- Light Nuclear Core Light Nuclear Core Aerolev Unit Aerolev Unit Aerolev Unit Aerolev Unit Aerolev Unit Improved Heat Sink Improved Heat Sink Improved Utility Shielding Improved Utility Shielding Sensor Drone Bay Heavy Ion Cannon Heavy Ion Cannon Enhanced Autogun Enhanced Autogun Enhanced Autogun Flak Cannon Datajack Hammer [Rating: 37] Favorites ----------- Power Ion Engine Engine Ion Engine Power Core Light Nuclear Core Propulsion Light Treads Treads Light Treads Leg Aluminum Leg Wheel Armored Wheel Hover Unit Aerolev Unit Utility High-capacity Storage Unit Device Heat Sink Storage High-capacity Storage Unit Processor Advanced Targeting Computer Protection Heavy Armor Plating Weapon Light Cannon Energy Cannon Ion Cannon Ballistic Gun Enhanced Autogun Ballistic Cannon Light Cannon Launcher Grenade Launcher Impact Weapon Hammer Special Melee Weapon Datajack Build | -11 -10 -10 -10 -9 -8 ------- Run | Yrd Mat Min Exi Min Mat Slots Evolved 4 | . . . . . 4 Power . | . . . . . . Propulsion 2 | . . . . . 2 Utility 2 | . . . . . 2 Weapon . | . . . . . . Parts Attached 78 | 1 17 2 1 5 52 Power 11 | . 4 . . 2 5 Engine 9 | . 4 . . 2 3 Core 2 | . . . . . 2 Reactor . | . . . . . . Propulsion 24 | . 4 . . . 20 Treads 11 | . . . . . 11 Leg 5 | . . . . . 5 Wheel 7 | . 4 . . . 3 Hover 1 | . . . . . 1 Flight . | . . . . . . Utility 24 | 1 5 . . 1 17 Device 11 | 1 1 . . 1 8 Storage 4 | . 4 . . . . Processor 2 | . . . . . 2 Hackware . | . . . . . . Protection 7 | . . . . . 7 Artifact . | . . . . . . Weapon 19 | . 4 2 1 2 10 Energy Gun . | . . . . . . Energy Cannon 3 | . . . . . 3 Ballistic Gun 10 | . 3 . . 1 6 Ballistic Cannon 3 | . 1 . . 1 1 Launcher 1 | . . 1 . . . Special Weapon . | . . . . . . Impact Weapon 1 | . . 1 . . . Slashing Weapon . | . . . . . . Piercing Weapon . | . . . . . . Special Melee Weapon 1 | . . . 1 . . Unidentified Prototypes 3 | . . . . . 3 Parts Lost 26 | . 2 1 . 4 19 Power 4 | . 1 . . 1 2 Propulsion 13 | . . 1 . 1 11 Utility 5 | . 1 . . . 4 Weapon 4 | . . . . 2 2 Highest Loss Streak 7 | . 1 1 . 3 7 To Critical Strikes . | . . . . . . Average Backups 17 | 6 13 17 18 17 18 Power 2 | 1 1 2 2 2 2 Propulsion 4 | 4 5 5 5 5 3 Utility 3 | . 1 4 4 5 4 Weapon 5 | 1 4 5 6 3 6 Tool/Special . | . . . . . . Unused Backups 31 | . 8 . . 3 20 Power 9 | . 2 . . 1 6 Propulsion 6 | . 2 . . . 4 Utility 8 | . 1 . . 2 5 Weapon 8 | . 3 . . . 5 Tool/Special . | . . . . . . Average Slot Usage (%) 93 | . 96 100 83 99 88 Engine 10 | . 11 14 14 14 7 Treads 11 | . . . . . 24 Leg 1 | . 5 . . . . Wheel 16 | . 22 28 28 28 6 Device 8 | . 8 14 14 14 5 Storage 12 | . 17 14 14 14 9 Processor 3 | . . . . . 8 Protection 3 | . . . . . 7 Ballistic Gun 11 | . 14 1 . 13 12 Ballistic Cannon 8 | . 13 14 . 13 3 Peak Build Rating 37 | 7 12 12 11 13 37 Average Rating 18 | 6 10 11 9 12 27 On Entrance 9 | 6 7 12 11 10 13 Avg Prop Armor Cover (%) 8 | . . . . . 8 Naked Turns . | . . . . . . Heaviest Build 82 | 11 52 52 52 52 82 Greatest Support 80 | 20 24 24 24 24 80 Greatest Overweight (x) 8 | . 2 2 2 2 8 Average Overweight (x) 1 | . 1 2 1 2 1 Largest Inventory Capacity 20 | 8 20 20 20 20 20 Average Capacity 18 | 8 15 20 20 20 20 Most Carried 20 | 6 18 20 20 20 20 Average Carried 17 | 6 13 18 19 18 18 Final Capacity 20 | 8 20 20 20 20 20 Final Carried 20 | 6 18 18 19 20 15 Class Distribution -------------------- 77% | Mutant 22% | Scavenger-Mutant Dominant Class ---------------- Mutant | -10/Materials Mutant | -10/Mines Mutant | -10/Exiles Mutant | -9/Mines Scavenger-Mutant | -8/Materials Resources | -11 -10 -10 -10 -9 -8 ----------- Run | Yrd Mat Min Exi Min Mat Matter Collected 2928 | 189 590 7 117 257 1768 Remotely . | . . . . . . Salvage Created 3571 | 15 572 10 . 541 2433 Parts 199 | 4 43 . . 31 121 Haulers Intercepted 4 | . 1 . . . 3 Recyclers Shooed 8 | 1 1 . . . 6 Parts Field Recycled . | . . . . . . Retrieved Matter . | . . . . . . Parts Self-Destructed . | . . . . . . Prevented . | . . . . . . Parts Restored . | . . . . . . Kills | -11 -10 -10 -10 -9 -8 ------- Run | Yrd Mat Min Exi Min Mat Combat Hostiles Destroyed 78 | . 18 2 . 10 48 Guns 43 | . 11 . . 2 30 Cannons 30 | . 7 1 . 5 17 AOE 4 | . . 1 . 3 . Classes Destroyed 12 | 1 3 1 . 3 4 Worker 2 | . . . . 1 1 Tunneler 1 | 1 . . . . . Hauler 4 | . 1 . . . 3 Recycler 6 | . . . . 2 4 Operator 1 | . . . . . 1 Swarmer 15 | . 8 . . . 7 Grunt 46 | . 10 . . 8 28 Brawler 1 | . . . . . 1 Duelist 3 | . . . . . 3 Sentry 8 | . . . . 2 6 Hunter 3 | . . . . . 3 Assembled 2 | . . 2 . . . Best Kill Streak 6 | 1 3 1 . 4 6 Combat Bots Only 6 | . 3 1 . 3 6 Max Kills in Single Turn 3 | 1 1 1 . 2 3 Gunslinging 1 | . . . . . 1 Exploded 2 | . . 1 . 2 . Melee . | . . . . . . Uniques/NPCs Destroyed . | . . . . . . Combat | -11 -10 -10 -10 -9 -8 -------- Run | Yrd Mat Min Exi Min Mat Hostile Shots Fired 426 | . 86 9 . 32 299 Missed 105 | . 21 2 . 8 74 Hits 321 | . 65 7 . 24 225 Melee 13 | . . . . . 13 Projectile 308 | . 65 7 . 24 212 Critical Strikes 15 | . 1 . . 1 13 Damage Taken 4959 | . 600 135 . 342 3882 Core 748 | . 120 20 . 43 565 Absorbed by Shields . | . . . . . . Redirected to Shielding 9 | . . . . . 9 Regen/Repaired (Parts) 92 | . . . . . 92 Core Remaining (%) 63 | 100 . . . 26 . Volleys Fired 263 | 5 44 10 . 21 183 Largest 2 | 2 2 2 . 2 2 Hottest 130 | 40 53 60 . 60 130 Shots Fired 500 | 10 84 12 . 38 356 Gun 305 | 10 47 . . 17 231 Cannon 186 | . 37 9 . 17 123 Launcher 9 | . . 3 . 4 2 Special . | . . . . . . Kinetic 445 | 10 84 9 . 34 308 Thermal 46 | . . . . . 46 Explosive 9 | . . 3 . 4 2 Electromagnetic . | . . . . . . Robot Hit Streak 14 | 3 4 3 . 6 14 Robot Miss Streak 5 | 1 4 3 . 2 5 Penetration Max . | . . . . . . Secondary Targets 6 | . . . . . 6 Max Gunslinging Chain 1 | . . . . . 1 Shots Hit Robots 353 | 6 38 6 4 26 273 Core Hits 178 | 2 21 4 . 17 134 Critical Kills 2 | . . . . . 2 Critical Parts Destroyed 3 | . 1 . . . 2 Critical Strikes 8 | . 2 . . 2 4 Meltdown 1 | . . . . . 1 Destroy 4 | . 1 . . . 3 Blast 3 | . 1 . . 2 . Melee Attacks 6 | . . 2 4 . . Impact 2 | . . 2 . . . Slashing . | . . . . . . Piercing . | . . . . . . Sneak Attacks 4 | . . . 4 . . Combat Hostiles . | . . . . . . Follow-up Attacks . | . . . . . . Damage Inflicted 6661 | 45 628 129 . 569 5290 Guns 3416 | 45 370 . . 167 2834 Cannons 2794 | . 258 88 . 204 2244 Explosions 451 | . . 41 . 198 212 Melee . | . . . . . . Ramming . | . . . . . . Kinetic 5234 | 45 628 88 . 371 4102 Thermal 976 | . . . . . 976 Explosive 451 | . . 41 . 198 212 Electromagnetic . | . . . . . . Impact . | . . . . . . Slashing . | . . . . . . Piercing . | . . . . . . Highest Corruption 9 | . 1 1 1 1 9 Average Corruption 4 | . 1 1 1 1 8 Corruption Purged . | . . . . . . Corruption Blocked . | . . . . . . Effects 78 | . 3 5 3 6 61 Message Errors 22 | . 1 2 3 1 15 Matter Fused 17 | . 1 . . 1 15 Heat Flow Errors 7 | . 1 1 . . 5 Energy Discharges 8 | . . . . . 8 Parts Rejected 2 | . . . . . 2 Parts Fused 1 | . . . . . 1 Data Loss (minor) 11 | . . 2 . 3 6 Data Loss (major) 4 | . . . . . 4 Misfires 3 | . . . . . 3 Alerts 1 | . . . . 1 . Weapon Failures 2 | . . . . . 2 Overload Shots . | . . . . . . Overflow Damage 19 | . . . . 19 . Projectiles . | . . . . . . Explosions 19 | . . . . 19 . Melee . | . . . . . . Knockbacks 38 | . 4 2 . 1 31 Impact . | . . . . . . Kinetic 36 | . 4 2 . 1 29 Secondary 2 | . . . . . 2 Self-Inflicted Damage 74 | . . 51 . 23 . Shots 3 | . . 2 . 1 . Rammed 1 | . 1 . . . . Targets Rammed 1 | . 1 . . . . Kicked . | . . . . . . Crushed . | . . . . . . Highest Temperature 337 | . 195 89 . 14 337 Average Temperature 82 | . 48 59 . 5 84 Received Heat Transfer 1725 | . 102 . . 156 1467 Effects 1 | . . . . . 1 Energy Bleed 1 | . . . . . 1 Siege Activations . | . . . . . . Martial Activations . | . . . . . . Shielding Activations . | . . . . . . Robots Disrupted . | . . . . . . Combat Hostiles . | . . . . . . Robots Corrupted . | . . . . . . Combat Hostiles . | . . . . . . Parts Fried . | . . . . . . Impact Corruptions . | . . . . . . Robots Melted 1 | . . . . . 1 Combat Hostiles 1 | . . . . . 1 Parts Melted . | . . . . . . Heat Transferred 1443 | . . . . . 1443 Parts Sabotaged . | . . . . . . Parts Stolen . | . . . . . . Parts Stripped . | . . . . . . Power Chain Reactions . | . . . . . . Alert | -11 -10 -10 -10 -9 -8 ------- Run | Yrd Mat Min Exi Min Mat Maximum Alert Level 2 | . . . . . 2 Low Security (%) 60 | 100 100 100 . 100 17 Level 1 25 | . . . . . 54 Level 2 13 | . . . . . 27 Level 3 . | . . . . . . Level 4 . | . . . . . . Level 5 . | . . . . . . High Security . | . . . . . . Max Security . | . . . . . . Peak Influence 620 | 5 141 53 . 110 620 Initial 53 | . 3 53 . . 7 Average 193 | 2 65 8 . 48 350 Influence Increases 2383 | 5 607 23 . 320 1428 Destroy 0b10 Robot/C 1600 | . 360 . . 240 1000 Destroy 0b10 Robot/NC 70 | 5 5 . . 15 45 Destroy Leader 368 | . 102 . . 30 236 Allied During Kill 22 | . . . . 7 15 Successful Hack 30 | . 17 . . . 13 Select Force Hacks 90 | . 60 . . . 30 Disable Machine 90 | . 30 . . . 60 Destroy Structure 68 | . 3 23 . 28 14 Lose Combat Pursuer 45 | . 30 . . . 15 Influence Decreases 1785 | . 475 160 . 301 849 Entered New Map 98 | . 2 84 . . 12 Time Decay 1412 | . 461 76 . 268 607 Lost Part 235 | . 12 . . 33 190 Lost Ally 40 | . . . . . 40 Squads Dispatched 19 | . 8 . . . 11 Investigation 10 | . 7 . . . 3 Extermination . | . . . . . . Reinforcement 5 | . 1 . . . 4 Assault . | . . . . . . Garrison 4 | . . . . . 4 Intercept . | . . . . . . Searches Triggered . | . . . . . . Construction Impeded . | . . . . . . Haulers Reinforced . | . . . . . . Active Scanning Responses . | . . . . . . Cargo Convoy Interrupts . | . . . . . . Stealth | -11 -10 -10 -10 -9 -8 --------- Run | Yrd Mat Min Exi Min Mat Distress Signals 9 | . 5 . . 1 3 Communications Jammed . | . . . . . . Distress Signals . | . . . . . . Times Spotted 121 | . 31 2 . 12 76 Peak Tracking Total 8 | . 5 1 . 3 8 Tactical Retreats 3 | . 2 . . . 1 Traps | -11 -10 -10 -10 -9 -8 ------- Run | Yrd Mat Min Exi Min Mat Traps Triggered 11 | . 8 . . . 3 Indirectly . | . . . . . . Trap Hack Attempts . | . . . . . . Triggered . | . . . . . . Disarmed . | . . . . . . Reprogrammed . | . . . . . . Reused . | . . . . . . Traps Extracted . | . . . . . . Installed 1 | . . 1 . . . Triggered . | . . . . . . Most Traps Carried 2 | . . 2 1 1 1 Machines | -11 -10 -10 -10 -9 -8 ---------- Run | Yrd Mat Min Exi Min Mat Machines Disabled 6 | . 2 . . . 4 Max in Single Turn 1 | . 1 . . . 1 Garrison Access 1 | . . . . . 1 Machines Repaired . | . . . . . . Machines Dismantled . | . . . . . . Machines Sabotaged . | . . . . . . Overloaded Fab Kills . | . . . . . . Hacking | -11 -10 -10 -10 -9 -8 --------- Run | Yrd Mat Min Exi Min Mat Machines Accessed 19 | . 8 . 1 1 9 Terminals 10 | . 6 . . . 4 Fabricators . | . . . . . . Repair Stations 1 | . . . . . 1 Recycling Units 3 | . 2 . . . 1 Scanalyzers 2 | . . . . . 2 Garrison Access 1 | . . . . . 1 Total Hacks 46 | . 19 . 1 1 25 Successful 22 | . 5 . 1 1 15 Failed 24 | . 14 . . . 10 Catastrophic 5 | . 4 . . . 1 Database Lockouts . | . . . . . . Manual 24 | . 15 . . . 9 Terminals 30 | . 17 . . . 13 Fabricators . | . . . . . . Repair Stations 2 | . . . . . 2 Recycling Units 4 | . 2 . . . 2 Scanalyzers 7 | . . . . . 7 Garrison Access 1 | . . . . . 1 Terminal Hacks 12 | . 3 . 1 1 7 Record 1 | . . . 1 . . Prototype ID Bank 6 | . 2 . . . 4 Open Door 1 | . . . . 1 . Branch Access Points 1 | . . . . . 1 Hauler Manifests 3 | . 1 . . . 2 Fabricator Hacks . | . . . . . . Repair Station Hacks 2 | . . . . . 2 Scan Component 1 | . . . . . 1 Repair 1 | . . . . . 1 Recycling Unit Hacks . | . . . . . . Scanalyzer 4 | . . . . . 4 Retrieve Study 4 | . . . . . 4 Garrison Access Hacks 1 | . . . . . 1 Seal Access 1 | . . . . . 1 Unauthorized Hacks 3 | . 2 . . . 1 Terminals . | . . . . . . Fabricators . | . . . . . . Repair Stations . | . . . . . . Recycling Units 3 | . 2 . . . 1 Tunnel 3 | . 2 . . . 1 Scanalyzers . | . . . . . . Garrison Access . | . . . . . . Data Cores Recovered . | . . . . . . Used . | . . . . . . Hacking Detections 13 | . 6 . . . 7 Full Trace Events 3 | . 2 . . . 1 Feedback Events 1 | . 1 . . . . Corruption 1 | . 1 . . . . Feedback Blocked . | . . . . . . Robot Schematics Acquired . | . . . . . . Robots Built . | . . . . . . Authchips . | . . . . . . Time . | . . . . . . Total Robot Build Rating . | . . . . . . Part Schematics Acquired . | . . . . . . Parts Built . | . . . . . . Authchips . | . . . . . . Time . | . . . . . . Total Part Build Rating . | . . . . . . Part Studies Acquired 4 | . . . . . 4 Parts Repaired 1 | . . . . . 1 Time 26 | . . . . . 26 Parts Recycled . | . . . . . . Recycled Matter . | . . . . . . Retrieved Matter . | . . . . . . Retrieved Components . | . . . . . . Parts Scanalyzed . | . . . . . . Part Schematics Acquired . | . . . . . . Parts Damaged . | . . . . . . Bothacking | -11 -10 -10 -10 -9 -8 ------------ Run | Yrd Mat Min Exi Min Mat Used RIF Installer . | . . . . . . Robots Hacked 4 | . . . 4 . . Non-combat 3 | . . . 3 . . Combat 1 | . . . 1 . . Robot Hacks Applied 4 | . . . 4 . . parse_system 4 | . . . 4 . . Relay Couplers Released . | . . . . . . Fabnet Peak Effective % . | . . . . . . Robots Rewired . | . . . . . . Allies Hacked . | . . . . . . Hacks Repelled . | . . . . . . Allies | -11 -10 -10 -10 -9 -8 -------- Run | Yrd Mat Min Exi Min Mat Total Allies 3 | . . . . 3 . Largest Group 3 | . . . . 3 2 Highest-Rated Group 40 | . . . . 40 32 Highest-Rated Ally 16 | . . . . 16 16 Total Orders . | . . . . . . Ally Attacks 44 | . . . . 10 34 Total Damage 395 | . . . . 103 292 Kills 5 | . . . . 3 2 Allies Corrupted . | . . . . . . Allies Melted . | . . . . . . Intel | -11 -10 -10 -10 -9 -8 ------- Run | Yrd Mat Min Exi Min Mat Active Infowar (turns) 191 | 3 186 . . . 2 Terrain 2 | . . . . . 2 Seismic 189 | 3 186 . . . . Robot Analysis Total . | . . . . . . Derelict Logs Recovered 2 | . . 1 . 1 . Drone Launches . | . . . . . . Drone Recoveries . | . . . . . . Exploration | -11 -10 -10 -10 -9 -8 ------------- Run | Yrd Mat Min Exi Min Mat Turns Passed 4945 | 19 1329 411 255 702 2229 Spaces Moved 2672 | 4 912 108 235 486 927 Core . | . . . . . . Treads 561 | . . . . . 561 Legs 123 | 4 114 . . . 5 Wheels 1988 | . 798 108 235 486 361 Hover . | . . . . . . Flight . | . . . . . . Fastest Speed 90 | 120 90 120 105 120 120 Average Speed 132 | 120 116 120 105 120 163 Slowest Speed 320 | 120 190 120 120 120 320 Overloaded Moves . | . . . . . . Propulsion Burnouts . | . . . . . . Robots Hopped . | . . . . . . Potential Cave-ins . | . . . . . . Cave-ins Triggered . | . . . . . . Exploration Rate (%) 58 | 2 99 25 66 91 70 Regions Visited 5 Branch Regions 3 Pre-discovered Areas 4 | . 2 . 1 . 1 Known Exits Taken . | . . . . . . Unknown Exits Taken 5 | 1 1 1 1 1 . Scrap Searched 2 | . . . . 2 . Spaces Dug . | . . . . . . Terrain Destroyed 67 | . . 23 . 33 11 Melee . | . . . . . . Projectile 3 | . . . . . 3 AOE 64 | . . 23 . 33 8 Terrain Rammed . | . . . . . . Walls Destroyed . | . . . . . . Machines Disabled . | . . . . . . Actions | -11 -10 -10 -10 -9 -8 --------- Run | Yrd Mat Min Exi Min Mat Total 3658 | 9 1094 373 241 567 1374 Wait 452 | . 75 247 . 33 97 Move 2667 | 3 911 107 234 485 927 Hop . | . . . . . . Pick Up 67 | . 20 2 . 10 35 Fast Attach 48 | 1 11 . . . 36 Attach 30 | . 3 1 1 5 20 Detach 10 | . 2 . 2 . 6 Swap 40 | . 12 2 . 6 20 Drop 73 | . 15 1 . 7 50 Fire 263 | 5 44 10 . 21 183 Melee 6 | . . 2 4 . . Ram 1 | . 1 . . . . Kick . | . . . . . . Crush . | . . . . . . Escape Stasis . | . . . . . . Rewire . | . . . . . . Trap 1 | . . 1 . . . Miscellaneous . | . . . . . . Route ------- -11/Scrapyard -10/Materials (discovered 6 exits: [*Mat x3] / [*Min x2] / [*Sub]) -10/Mines -10/Exiles -9/Mines (discovered 2 exits: *Mat x2) -8/Materials (discovered 2 exits: *Fac x2) History --------- Turn | Location | Event 12 | -11/Scrapyard | Discovered new exit (range 2) 20 | -11/Scrapyard | Entered Materials 331 | -10/Materials | Build established: Mutant 415 | -10/Materials | Discovered new exit (range 7) 623 | -10/Materials | Discovered new exit (range 8) 741 | -10/Materials | Discovered new exit (range 5) 773 | -10/Materials | Discovered new exit (range 11) 985 | -10/Materials | Discovered new exit (range 5) 1145 | -10/Materials | Discovered new exit (range 8) 1220 | -10/Materials | Derelicts attacked the area 1349 | -10/Materials | Entered Mines 1361 | -10/Mines | Found a hidden stash of uninstalled traps 1387 | -10/Mines | Assembled infested the area 1401 | -10/Mines | Discovered new exit (range 4) 1678 | -10/Mines | Learned Materials stockpile data 1715 | -10/Mines | Core integrity fell below 50% 1755 | -10/Mines | Deemed a non-threat by the Exiles lab entrance 1760 | -10/Mines | Entered Exiles 1787 | -10/Exiles | Met 8R-AWN 1808 | -10/Exiles | Met EX-HEX 1839 | -10/Exiles | Met EX-BIN 1877 | -10/Exiles | Met EX-DEC 1881 | -10/Exiles | Learned location of Zion (-6) 2003 | -10/Exiles | Discovered new exit (range 12) 2015 | -10/Exiles | Entered Mines 2023 | -9/Mines | Found the Drone Emporium 2030 | -9/Mines | Found Prototype Device 2055 | -9/Mines | Learned location of 1 exit from Materials 2143 | -9/Mines | Excavation squad dispatched 2143 | -9/Mines | A large section of the Mines collapsed 2204 | -9/Mines | Lost 3 parts (1p1n1w) 2441 | -9/Mines | Assisted by bots powering up and referring to "LRC-V3" 2607 | -9/Mines | Discovered new exit (range 11) 2707 | -9/Mines | Discovered new exit (range 6) 2717 | -9/Mines | Entered Materials 2717 | -8/Materials | Accompanied by 2 allies 2717 | -8/Materials | Evolved 4 slots: Propulsion x2, Utility x2 2718 | -8/Materials | Identified exit to Factory 2725 | -8/Materials | Identified Sensor Drone Bay 2913 | -8/Materials | Garrison activated, responded to threat 3217 | -8/Materials | Build established: Scavenger-Mutant 3236 | -8/Materials | Garrison activated, responded to threat 3312 | -8/Materials | Lost 7 parts (2p4n1u) 3636 | -8/Materials | Discovered exit to Factory (range 10) 3756 | -8/Materials | Build established: Mutant 4454 | -8/Materials | Repaired Lgt. Treads+ 4481 | -8/Materials | Core integrity fell below 50% 4705 | -8/Materials | Build established: Scavenger-Mutant 4932 | -8/Materials | Core integrity fell below 20% 4946 | -8/Materials | Destroyed by H-61 Shepherd with Heavy Assault Cannon Last Messages --------------- 04883_ Slug penetrates Wall. 04885_ &8GBYP8QMZN0 TH>7T&%KNOJBB 04887_ Slug penetrates Wall. 04889_ Penetrated by Slug. 04891_ H-61 Shepherd heat damages Rnf. Deuterium Engine. 04891_ Critical hit (Burn: +37). 04893_ Acquired 13 matter. 04903_ M-13 Machinist repairs H-61 Shepherd Rnf. Deuterium Engine. 04916_ System corrupted: Matter fused (-7). 04916_ Lgt. Treads+ destroyed. 04918_ G-47 Trooper destroyed. 04926_ Hvy. Ion Cannon blasted off. 04927_ Acquired Aluminum Leg. 04930_ Hvy. Armor Plating destroyed. 04932_ Wheel destroyed. 04936_ Penetrated by Slug. 04941_ HMSAZW6JUWAQAM OQVHF4K>XCHYCB|KT0/ 04941_ Penetrated by Slug. Map ----- +----------------------------------------------------+ | ???????##### # % #??????????????????? ??? | | ???????????### % #??????????????????? ??? | | ?????????????# = #??????????????????# ??? | | ?????????????##%##??????????????????# ???? | | ??????????????#=#???????????????????# ???? | | ??????????????#=#???????????????????? ???? | | ??????????????# #?????????????????????? ???? | | ??????????????# #??????????????????????????? | | ??????????????# #??????????????????????????? | | ??????????????# #??????????????????????????? | | ??????????????# #??????########????????????? | | ??????????????# ###????# !! #????????????? | | ??????????????# #????# #????????????? | | ??????????????# #????#""" *#????????????? | | ??????????????# #????#""" #????????????? | | ??????????????# #????#""" !#????????????? | | ??????????????# #????# #????????????? | | ????########### #????####+######?????????? | | ????# ! + #???????# # #?????????? | | ????# # ######### # #?????????? | | ????# # # """ ## # / #?????????? | | ????# # # """ ## + [ #?????????? | | ????# """ """ # # " " ## # #?????????? | | ????# """ """ # ; ## # !#?????????? | | ????# """ """ + ;]% ##% #####?????????? | | ????# # #@rg *## ######?????????? | | ????########### #=%#;;#;; # #?????????? | | ???????# # u!*% + #?????????? | | ???????#! =# H #?????????? | | ???????# """=+ " + #?????????? | | ???????# """=#[ T #* #?????????? | | ???????# """ # " # #?????????? | | ???????# # # #?????????? | | ???????######## ! # #?????????? | | ??????????????# ^ # #?????????? | | ??????????????# " " "" ;#####?????????? | | ??????????????# """"""" ; ?????????????? | | ??????????????# """"" # ????????????? | | ??????????????# # ?????????????? | | ??????????????# ? # ????????????? | | ??????????????# """???" #? ????????????? | | ??????????????# """"???" #? ????????????? | | ??????????????#*$%"?????" ??????????????? | | ??????????????? ?????? ???????????????? | | ??????????????? ??????? ???????????????? | | ???????????????#+#???????+# ???????????????? | | ???????????????????????????????????????????? | | ???????????????????????????????????????????? | | ???????????????????????????????????????????? | | ???????????????????????????????????????????? | +----------------------------------------------------+ Best States ------------- Heat Dissipation 59 Energy Generation 16 Energy Capacity 290 Matter Stores 302 Matter Capacity 350 Sight Range 16 Terrain Scan Density 10 Armor Coverage 600 Utility Shielding 66 Evasion (%) 50 Targeting Accuracy 8 Recoil Reduction 4 Item Schematics ----------------- None Robot Schematics ------------------ None Fabricated ------------ Nothing Repaired ---------- Lgt. Treads | 34% | -8/Materials Studied --------- Lgt. Nuclear Core | -8/Materials | Hacked Com. Wheel | -8/Materials | Hacked Lgt. Treads | -8/Materials | Hacked Deuterium Engine | -8/Materials | Hacked Alien Tech Used ----------------- None Achievements -------------- None Challenges ------------ None Game ------ Seed ForceGaussInterpreter Manual? 0 Play Time 00:54:37 Cumulative 551.8 hours Start 2025.11.11 @ 21:26:02 End 2025.11.11 @ 22:20:16 Sessions 1 Manual Loads 0 Difficulty Rogue Special Mode None Game No. 163 Rogue 124 Adventurer 0 Explorer 39 Win Type - Total 15 Types 12/1/1/1/0/0/0/0/0/0 Lore% 75 Gallery% 73 Achievement% 50 Wizard Run 0 Options --------- Layout 2 ASCII 1 Keyboard 1 Movement Arrows Keybinds 0 Fullscreen 1 Font 24/Smallcaps Map View 50x44 Zoom Use 0% Tactical HUD 1 Map Filters NONE Filters NONE Steam 1 RUN: db61f6c9-26b2-4c59-8a99-258bb59e4340